bitfinex-derivatives/quotes_ETHF0:USTF0_20250224
["timestamp","ask_amount","ask_price","bid_price","bid_amount"]
[1740435270231,3.2078,2561.6,2560.2,3.2078]
[1740435270437,3.2078,2561.6,2560.4,3.2078]
[1740435270825,3.2078,2561.9,2559.8,3.2078]
[1740435271025,0.78106,2560.8,2560.7,0.00585892]
[1740435271227,0.00585892,2561.3,2560.7,0.00585892]
[1740435271531,0.00585892,2561.3,2560.8,3.2078]
[1740435271731,0.00585892,2561.3,2561.1,3.2078]
[1740435271934,3.2078,2562.7,2561.1,3.2078]
[1740435272232,21.648,2564.6,2561.1,3.2078]
[1740435272233,3.2078,2564.5,2562.6,3.2078]
[1740435272435,3.2078,2564.7,2563.6,3.2078]
[1740435272731,3.2078,2564.4,2562.9,3.2078]
[1740435272935,3.2078,2564.0,2562.5,3.2078]
[1740435273130,5.5207,2565.6,2562.1,21.648]
[1740435273131,0.00585892,2563.9,2563.4,0.00585892]
[1740435273337,0.00585892,2563.9,2563.5,3.2078]
[1740435274132,0.00585892,2563.9,2563.5,9.2078]
[1740435274325,0.00585892,2563.9,2563.6,40.8]
[1740435274935,0.00585892,2563.9,2563.6,50.0078]
[1740435275134,2.75680714,2565.5,2563.6,50.0078]
[1740435275332,2.75680714,2565.5,2565.1,3.2078]
[1740435275529,2.75680714,2565.5,2564.9,3.2078]
[1740435275832,2.75680714,2565.5,2565.4,3.2078]
[1740435276337,2.75680714,2565.5,2565.2,0.00584727]
[1740435276539,2.75680714,2565.5,2565.4,40.8]
[1740435276734,2.75680714,2565.5,2565.4,44.78746]
[1740435276939,5.51361428,2565.8,2565.4,50.0078]
[1740435277134,5.51361428,2565.8,2565.7,3.2078]
[1740435277334,2.55281428,2565.8,2565.7,9.2078]
[1740435277538,6.91174267,2565.9,2565.7,9.2078]
[1740435277835,3.2078,2567.2,2565.7,9.2078]
[1740435278030,11.3444,2567.7,2566.3,2.01065]
[1740435278238,3.2078,2566.4,2565.2,0.00584727]
[1740435278538,3.2078,2566.1,2564.3,3.2078]
[1740435278734,3.2078,2566.1,2565.5,0.00584727]
[1740435278936,3.2078,2566.4,2565.5,0.00584727]
[1740435279238,3.2078,2566.5,2565.5,0.00584727]
[1740435279438,0.00584727,2566.2,2565.5,0.00584727]
[1740435279648,3.2078,2565.8,2565.5,0.00584727]
[1740435279942,3.98727,2566.1,2565.5,0.00584727]
[1740435280143,0.00584727,2566.2,2565.5,0.00584727]
[1740435280342,3.2078,2565.8,2564.7,3.2078]
[1740435280539,3.2078,2565.7,2564.7,3.2078]
[1740435280732,3.21364727,2566.2,2564.7,3.2078]
[1740435280935,0.00584727,2566.2,2565.6,3.2078]
[1740435281139,0.00584727,2566.2,2565.1,3.2078]
[1740435281348,3.2078,2567.9,2566.1,3.2078]
[1740435281540,5.6041,2568.4,2566.4,3.2078]
[1740435281541,3.2078,2568.2,2566.4,3.2078]
[1740435281852,3.2078,2567.8,2566.4,3.2078]
[1740435282044,3.2078,2567.5,2566.4,3.2078]
[1740435282339,3.2078,2567.7,2566.4,3.2078]
[1740435282544,3.2078,2567.7,2566.7,3.2078]
[1740435282741,0.00584727,2567.2,2567.1,3.2078]
[1740435282945,0.07787555,2568.2,2567.1,3.2078]
[1740435283146,0.07787555,2568.2,2567.2,3.2078]
[1740435283342,1.94712,2568.1,2566.8,3.2078]
[1740435283543,0.07787555,2568.2,2566.8,3.2078]
[1740435283739,3.2078,2568.1,2566.8,3.2078]
[1740435283950,3.2078,2567.5,2566.8,3.2078]
[1740435284147,3.2078,2567.4,2566.7,0.00584727]
[1740435284354,0.7791,2567.3,2566.7,0.00584727]
[1740435284559,0.77915,2567.1,2566.7,0.00584727]
[1740435284753,3.2078,2567.2,2566.7,0.00584727]
[1740435285062,0.77924,2566.8,2566.7,0.00584727]
[1740435285553,0.77924,2566.8,2566.7,7.27e-06]
[1740435285757,6.77924,2566.8,2566.7,7.27e-06]
[1740435286156,1.94853,2566.3,2564.9,3.2078]
[1740435286351,3.2078,2566.6,2564.9,3.2078]
[1740435286553,6.70417,2567.1,2566.1,3.98725]
[1740435286754,6.70417,2567.1,2566.1,3.2078]
[1740435286755,5.925,2567.1,2566.1,3.2078]
[1740435287162,0.77929,2566.7,2566.1,3.2078]
[1740435287362,5.925,2567.1,2566.3,0.00584727]
[1740435287363,0.00584727,2566.9,2566.3,0.00584727]
[1740435287759,3.28567555,2568.2,2566.7,3.2078]
[1740435287961,0.07787555,2568.2,2567.2,3.2078]
[1740435288262,9.1328,2569.4,2567.6,0.77897]
[1740435288457,9.1328,2569.4,2567.9,3.2078]
[1740435288458,5.15401,2569.3,2567.9,3.2078]
[1740435288654,3.2078,2569.3,2568.4,3.2078]
[1740435288854,3.8896,2571.2,2568.4,3.2078]
[1740435288855,3.2078,2570.9,2569.2,3.2078]
[1740435289160,0.00584727,2569.1,2568.6,0.00584727]
[1740435289363,0.00584727,2569.1,2568.8,3.2078]
[1740435289862,3.98587,2570.7,2569.4,0.77842]
[1740435290066,3.2078,2570.7,2569.4,21.606]
[1740435290359,0.77839,2569.6,2569.4,21.606]
[1740435290552,1.94537,2570.4,2569.5,40.8]
[1740435290759,3.2078,2570.5,2568.8,3.2078]
[1740435290964,3.2078,2570.2,2568.8,3.2078]
[1740435291264,0.00386501,2569.9,2569.3,3.2078]
[1740435291457,0.00386501,2569.9,2569.6,3.2078]
[1740435291667,0.00386501,2569.9,2569.7,21.606]
[1740435292267,0.00386501,2569.9,2568.7,26.1178]
[1740435292461,0.00386501,2569.9,2568.9,3.2078]
[1740435292660,0.00386501,2569.9,2569.8,3.2078]
[1740435292866,5.5192,2571.3,2569.8,3.2078]
[1740435293065,5.5192,2571.3,2570.3,3.2078]
[1740435293269,0.77801,2570.9,2570.3,3.2078]
[1740435293569,3.2078,2571.8,2570.6,3.2078]
[1740435293769,5.15214,2571.8,2570.3,3.2078]
[1740435293964,5.15214,2571.8,2570.9,0.00583544]
[1740435293965,3.2078,2571.8,2570.9,0.00583544]
[1740435294171,0.77798,2571.0,2570.9,0.00583544]
[1740435294471,1.94486,2571.1,2569.4,3.2078]
[1740435294667,1.94524,2570.6,2569.5,3.2078]
[1740435294871,1.94531,2570.5,2569.2,21.596]
[1740435295165,5.15327,2570.3,2569.2,21.596]
[1740435295369,3.2078,2569.7,2568.8,3.2078]
[1740435295568,0.7786,2568.9,2568.8,3.2078]
[1740435295761,3.2078,2569.7,2568.4,21.589]
[1740435295969,3.2078,2569.7,2569.0,5.44e-06]
[1740435296273,0.00579601,2570.0,2569.0,5.44e-06]
[1740435296274,0.77854,2569.1,2569.0,5.44e-06]
[1740435296463,9.98634,2569.1,2569.0,5.44e-06]
[1740435296665,0.77903,2567.5,2567.4,21.589]
[1740435296863,0.77903,2567.5,2565.9,283.4921]
[1740435296864,3.2078,2568.4,2566.1,21.589]
[1740435297064,3.2078,2568.0,2566.5,3.2078]
[1740435297261,0.7793,2566.6,2566.5,3.2078]
[1740435297464,0.7793,2566.6,2566.5,40.8]
[1740435297669,0.7793,2566.6,2565.5,3.2078]
[1740435297670,0.77943,2566.2,2565.5,3.2078]
[1740435297869,3.2078,2566.5,2566.3,0.00583544]
[1740435298169,1.94819,2566.7,2565.3,3.2078]
[1740435298468,3.2078,2566.7,2565.0,3.2078]
[1740435298667,1.95399544,2566.8,2565.0,3.2078]
[1740435298668,0.77956,2565.8,2565.0,3.2078]
[1740435298873,3.98742,2565.6,2564.9,21.589]
[1740435299067,3.2078,2565.4,2564.3,3.2078]
[1740435299262,3.2078,2565.3,2565.0,0.00584704]
[1740435299761,0.00584704,2565.1,2565.0,0.00584704]
[1740435299967,5.5342,2566.3,2565.0,6.00584704]
[1740435300168,5.5342,2566.3,2565.3,3.2078]
[1740435300670,5.5342,2566.3,2565.0,0.00584704]
[1740435300874,3.2078,2565.9,2565.0,0.00584704]
[1740435301274,0.77975,2565.1,2565.0,7.04e-06]
[1740435301776,6.77975,2565.1,2565.0,7.04e-06]
[1740435301969,0.78027,2563.5,2563.3,3.2078]
[1740435302164,0.78027,2563.4,2563.3,3.2078]
[1740435302364,1.95032,2563.9,2562.7,3.2078]
[1740435302572,5.5857,2563.8,2562.6,9.19408803]
[1740435303067,5.5857,2563.8,2562.0,3.2078]
[1740435303068,0.78061,2562.3,2562.0,3.2078]
[1740435303369,1.95078,2563.3,2561.5,3.2078]
[1740435303370,3.2078,2563.1,2561.5,3.2078]
[1740435303569,3.2078,2563.1,2561.9,3.2078]
[1740435303773,3.2078,2563.1,2562.2,3.2078]
[1740435303966,3.2078,2563.1,2561.5,1.95213]
[1740435303967,5.8557,2563.2,2562.5,3.2078]
[1740435304273,5.8557,2563.2,2562.1,3.2078]
[1740435304471,3.2078,2562.5,2561.4,3.2078]
[1740435304670,9.0635,2562.4,2560.8,3.2078]
[1740435304871,5.8557,2562.4,2561.5,40.8]
[1740435305074,5.8557,2562.4,2561.7,0.00584704]
[1740435305266,9.0635,2562.4,2560.8,3.2078]
[1740435305473,9.0635,2562.4,2561.7,3.2078]
[1740435305474,0.00584704,2562.3,2561.7,3.2078]
[1740435305670,0.00584704,2562.3,2562.0,40.8]
[1740435305870,3.2078,2563.4,2562.2,3.2078]
[1740435306066,3.2078,2564.3,2563.5,0.78022]
[1740435306272,3.2078,2564.3,2563.0,21.609]
[1740435306475,0.7801,2564.0,2563.0,21.609]
[1740435306677,3.2078,2564.6,2563.9,40.8]
[1740435306876,3.2078,2565.6,2564.0,3.2078]
[1740435307172,3.2078,2565.0,2563.9,40.8]
[1740435307372,0.78009,2564.0,2563.9,40.8]
[1740435307580,3.2078,2564.0,2563.2,0.00584704]
[1740435307872,1.95064,2563.5,2562.1,7.9152]
[1740435308075,3.2078,2563.6,2563.3,0.00584704]
[1740435308268,9.2078,2563.6,2562.0,21.615]
[1740435308470,5.1588,2563.0,2562.0,21.615]
[1740435308669,5.8243,2564.3,2560.5,6.45557]
[1740435308670,3.2078,2562.5,2561.1,3.2078]
[1740435308876,3.90018,2564.2,2560.9,21.615]
[1740435308877,3.2078,2562.7,2561.4,3.2078]
[1740435309073,4.8227,2564.2,2561.4,3.2078]
[1740435309074,3.2078,2563.1,2561.4,3.2078]
[1740435309273,3.2078,2563.1,2561.8,3.2078]
[1740435309482,0.00584704,2562.5,2562.0,0.00584704]
[1740435310077,0.00584704,2562.5,2562.2,3.2078]
[1740435310472,3.2078,2563.7,2562.3,21.621]
[1740435310679,3.2078,2564.1,2563.5,0.78023]
[1740435310879,3.2078,2564.1,2563.6,8.925]
[1740435311077,3.2078,2565.2,2563.7,30.542]
[1740435311272,0.07796966,2565.1,2564.3,3.2078]
[1740435311586,0.07796966,2565.1,2564.6,3.2078]
[1740435311975,9.2334,2566.7,2564.6,9.2078]
[1740435312178,0.77963,2565.6,2565.0,3.2078]
[1740435312379,3.22329301,2565.2,2564.7,3.2078]
[1740435312572,3.2078,2566.0,2564.7,3.2078]
[1740435312778,3.22329301,2565.8,2564.8,8.895]
[1740435313080,6.0256,2566.6,2564.8,8.895]
[1740435313081,3.22329301,2566.6,2565.3,3.2078]
[1740435313279,3.2078,2567.3,2566.3,40.8]
[1740435313486,3.22329301,2566.5,2566.3,40.8]
[1740435313782,3.22329301,2566.4,2566.3,40.8]
[1740435313981,3.2078,2567.0,2566.3,40.8]
[1740435313982,0.00584704,2566.7,2566.3,46.8]
[1740435314282,0.00584704,2566.7,2566.3,40.8]
[1740435314581,5.46871623,2568.0,2566.5,3.2078]
[1740435314783,3.22329301,2567.4,2566.8,3.2078]
[1740435314977,0.77867,2568.7,2567.1,0.77914]
[1740435315181,3.22329301,2568.2,2567.8,3.2078]
[1740435315487,3.2078,2569.6,2568.1,3.2078]
[1740435315674,3.22329301,2568.7,2568.4,3.2078]
[1740435315880,3.22329301,2568.9,2568.5,8.812]
[1740435316087,8.989,2570.4,2568.5,8.812]
[1740435316088,3.22329301,2569.0,2568.5,8.812]
[1740435316381,0.00584704,2568.8,2568.5,8.812]
[1740435316774,0.00584704,2568.8,2567.5,3.2078]
[1740435316775,6.00584704,2568.8,2567.5,3.2078]
[1740435316980,3.2078,2568.6,2567.0,4.4916]
[1740435317282,3.2078,2568.2,2567.1,8.773]
[1740435317486,3.2078,2568.3,2567.1,8.773]
[1740435317787,3.2078,2567.4,2565.7,3.2078]
[1740435317977,3.2078,2567.4,2565.7,11.9528]
[1740435317978,1.94801,2567.0,2565.7,11.9528]
[1740435318177,3.2078,2566.4,2565.7,11.9528]
[1740435318382,0.77931,2566.6,2565.7,11.9528]
[1740435318587,0.00584704,2566.6,2566.1,0.00584704]
[1740435318779,0.77942,2566.2,2566.1,0.00584704]
[1740435318982,0.77942,2566.2,2566.1,7.04e-06]
[1740435319181,3.21364704,2566.6,2566.1,14.70000704]
[1740435319482,0.00584704,2566.6,2566.1,8.70000704]
[1740435319782,0.00584704,2566.6,2564.8,8.89714325]
[1740435319783,0.77981,2564.9,2564.8,8.89714325]
[1740435319986,1.94904,2565.6,2564.6,11.72966308]
[1740435320188,3.2078,2565.7,2564.6,11.72966308]
[1740435320588,3.2078,2565.6,2564.6,11.72966308]
[1740435320885,6.67843,2566.5,2564.6,11.72966308]
[1740435320886,3.2078,2566.5,2564.9,3.2078]
[1740435321084,5.7468,2567.3,2564.8,0.00584704]
[1740435321085,0.00584704,2565.4,2564.8,0.00584704]
[1740435321388,0.00584704,2565.4,2565.2,3.2078]
[1740435321583,3.2078,2567.2,2565.3,8.683]
[1740435321891,1.94715,2568.1,2565.9,3.2078]
[1740435321892,3.2078,2567.6,2565.9,3.2078]
[1740435322186,5.5811,2568.4,2566.7,3.2078]
[1740435322187,3.2078,2567.4,2566.7,3.2078]
[1740435322382,3.2078,2568.2,2567.0,3.2078]
[1740435322593,3.2078,2567.9,2567.3,3.2078]
[1740435322891,3.2078,2568.8,2567.3,3.21364704]
[1740435323090,3.2078,2568.7,2567.6,3.2078]
[1740435323295,5.46871623,2568.9,2567.9,3.2078]
[1740435323585,5.46871623,2568.9,2568.0,30.229]
[1740435323887,5.46871623,2568.9,2568.2,3.98659]
[1740435324083,5.46871623,2568.9,2568.2,3.2078]
[1740435324290,4.29123021,2569.1,2568.7,3.2078]
[1740435324487,3.2078,2570.7,2569.0,3.2078]
[1740435324678,3.2078,2570.1,2569.1,8.589]
[1740435324886,3.21363544,2570.1,2569.1,8.589]
[1740435325200,0.77789,2571.3,2569.8,0.77831]
[1740435325485,3.2078,2571.2,2569.9,21.599]
[1740435325785,3.2078,2571.1,2569.9,21.599]
[1740435325978,0.77806,2570.7,2569.9,21.599]
[1740435326185,3.2078,2570.7,2569.6,0.00583544]
[1740435326485,3.2078,2570.8,2569.6,0.00583544]
[1740435326684,0.00578441,2570.6,2569.7,21.599]
[1740435326885,0.00578441,2570.6,2570.5,0.77812]
[1740435327082,3.2078,2572.1,2570.5,6.0]
[1740435327282,3.2078,2572.1,2570.8,3.2078]
[1740435327488,3.2078,2571.8,2570.9,49.334]
[1740435327684,3.2078,2572.1,2570.9,40.8]
[1740435327890,5.15238,2571.5,2570.8,8.523]
[1740435328191,5.6564,2572.8,2570.8,8.523]
[1740435328192,3.2078,2571.2,2570.8,8.523]
[1740435328384,0.77796,2571.0,2570.9,0.00583544]
[1740435328685,9.2078,2571.2,2569.7,33.3328]
[1740435328888,1.94507,2570.8,2569.7,33.3328]
[1740435329089,0.77833,2569.8,2569.7,3.2078]
[1740435329283,3.2078,2570.9,2568.3,3.2078]
[1740435329284,0.77862,2568.9,2568.3,3.2078]
[1740435329483,3.2078,2569.5,2568.4,8.514]
[1740435329688,3.89059,2570.6,2568.4,8.514]
[1740435329689,3.2078,2569.2,2568.4,8.514]
[1740435329886,0.77872,2568.5,2568.4,8.514]
[1740435330286,3.2078,2568.6,2568.4,8.514]
[1740435330591,0.77871,2568.6,2568.4,8.514]
[1740435330797,3.2078,2569.1,2568.4,8.514]
[1740435331098,0.7786,2568.9,2568.4,8.514]
[1740435331290,0.77878,2568.3,2568.2,0.00583544]
[1740435331600,3.2078,2569.0,2567.9,8.482]
[1740435331601,3.2078,2568.4,2567.9,8.482]
[1740435332086,1.94643,2569.1,2567.9,8.482]
[1740435332087,3.2078,2568.8,2567.9,8.482]
[1740435332297,3.2078,2569.0,2567.9,8.482]
[1740435332700,3.2078,2568.7,2567.6,8.477]
[1740435332890,3.2078,2568.7,2568.2,0.00583544]
[1740435333094,3.98658,2568.3,2568.2,0.00583544]
[1740435333296,3.98658,2568.3,2568.2,5.44e-06]
[1740435333494,9.98658,2568.3,2568.2,5.44e-06]
[1740435333893,3.98658,2568.3,2568.2,5.44e-06]
[1740435334200,3.2078,2568.3,2568.2,5.44e-06]
[1740435334403,3.2078,2568.3,2568.2,40.80000544]
[1740435334897,0.77878,2568.3,2568.2,40.80000544]
[1740435335289,3.98658,2568.3,2568.2,40.80000544]
[1740435335793,9.2078,2568.3,2566.5,24.7958]
[1740435336096,3.2078,2567.6,2567.0,3.2078]
[1740435336297,3.2078,2567.9,2566.6,8.417]
[1740435336600,0.77927,2566.7,2566.6,8.417]
[1740435336900,0.7796,2565.7,2565.6,8.41]
[1740435337196,1.9484,2566.5,2566.4,5.44e-06]
[1740435337197,0.77933,2566.5,2566.4,5.44e-06]
[1740435337994,6.77933,2566.5,2566.4,5.44e-06]
[1740435338796,6.0,2566.5,2565.1,40.8]
[1740435338996,3.2078,2566.0,2565.1,40.8]
[1740435339199,0.00583544,2566.9,2565.2,1.94932]
[1740435339200,3.2078,2566.3,2565.2,1.94932]
[1740435339399,3.2078,2566.3,2565.3,11.5608]
[1740435339696,3.2078,2566.6,2566.2,3.2078]
[1740435339905,0.00583544,2566.9,2566.3,8.35]
[1740435340098,0.00583544,2566.9,2565.9,3.2078]
[1740435340099,0.00583544,2566.9,2566.4,8.335]
[1740435340304,3.2078,2566.6,2563.8,3.2078]
[1740435340504,3.2078,2565.2,2563.7,0.3904]
[1740435340710,3.2078,2565.2,2563.3,1.95069]
[1740435340910,3.2078,2564.9,2564.1,40.8]
[1740435341118,3.2078,2565.4,2564.2,30.134]
[1740435341617,3.2078,2565.1,2564.1,40.8]
[1740435341809,3.2078,2564.2,2563.5,8.543]
[1740435342011,3.2078,2564.8,2563.5,8.543]
[1740435342310,0.77997,2564.4,2564.3,0.00584716]
[1740435342507,3.2078,2564.4,2563.6,40.8]
[1740435342817,3.98798,2563.7,2563.6,40.8]
[1740435343113,3.2078,2563.7,2562.5,8.511]
[1740435343317,0.78041,2563.0,2561.9,21.597]
[1740435343612,3.2078,2563.8,2561.9,21.597]
[1740435343813,3.2078,2563.8,2562.2,0.00391763]
[1740435344115,3.2078,2563.5,2562.9,40.8]
[1740435344310,0.78036,2563.2,2562.9,40.8]
[1740435344511,3.2078,2563.2,2562.9,40.8]
[1740435345515,0.00584716,2563.3,2562.9,40.8]
[1740435345713,3.2078,2563.6,2562.9,46.8]
[1740435345918,3.2078,2564.2,2562.9,44.0078]
[1740435346116,3.2078,2564.2,2563.4,3.2078]
[1740435346314,3.2078,2564.6,2564.1,0.78004]
[1740435346613,3.2078,2565.3,2564.7,0.77986]
[1740435346814,3.2078,2565.3,2564.3,1.94999]
[1740435347012,3.2078,2565.3,2564.2,3.2078]
[1740435347222,3.21364716,2565.3,2564.8,0.77983]
[1740435347412,3.2078,2566.0,2564.7,0.00584716]
[1740435347608,3.98729,2566.0,2564.7,0.00584716]
[1740435347818,3.2078,2565.7,2564.7,0.00584716]
[1740435348821,0.00584716,2565.5,2564.7,0.00584716]
[1740435349321,0.00584716,2565.5,2564.8,8.35]
[1740435349524,0.00584716,2565.5,2564.9,40.8]
[1740435350312,0.00584716,2565.5,2564.9,46.8]
[1740435350819,3.2078,2567.0,2565.1,3.2078]
[1740435351017,3.2078,2567.0,2565.6,1.94895]
[1740435351211,3.2078,2567.4,2566.7,0.77926]
[1740435351412,3.2078,2568.5,2566.8,11.5098]
[1740435351613,3.2078,2568.2,2566.9,29.911]
[1740435351823,0.77876,2568.4,2566.9,29.911]
[1740435352012,3.2078,2568.6,2566.9,29.911]
[1740435352013,0.00584716,2567.9,2567.6,0.77898]
[1740435352324,0.00584716,2567.9,2567.5,3.2078]
[1740435352522,3.2078,2568.8,2567.5,3.2078]
[1740435353114,0.7788,2568.3,2567.5,3.2078]
[1740435353315,3.2078,2568.8,2567.5,3.2078]
[1740435353916,0.00584716,2568.4,2567.5,3.2078]
[1740435354125,0.77903,2567.5,2567.4,0.00584716]
[1740435354426,3.2078,2567.7,2567.4,0.00584716]
[1740435354626,3.2078,2567.7,2565.6,4.5795]
[1740435354627,3.2078,2567.7,2565.6,3.2078]
[1740435354919,3.2078,2566.9,2565.6,3.2078]
[1740435355618,5.15677,2565.7,2564.9,8.254]
[1740435355818,3.2078,2566.5,2564.9,8.254]
[1740435356020,0.00584716,2566.5,2566.0,0.00584716]
[1740435356226,0.00584716,2566.5,2566.1,8.252]
[1740435356622,0.00584716,2566.5,2566.1,14.252]
[1740435356823,0.00584716,2566.5,2566.1,8.252]
[1740435357023,3.2078,2567.8,2566.2,0.3904]
[1740435357217,3.2078,2568.3,2566.3,4.53476673]
[1740435357417,3.2078,2568.7,2566.9,3.2078]
[1740435357619,3.2078,2568.7,2567.5,3.2078]
[1740435357919,3.2078,2569.2,2567.6,8.213]
[1740435358123,0.77874,2568.5,2567.6,11.4208]
[1740435358427,3.2078,2569.3,2567.9,1.94727]
[1740435358629,3.2078,2569.6,2567.9,1.94723]
[1740435358823,3.2078,2569.3,2568.1,3.2078]
[1740435359026,0.77852,2569.2,2568.1,3.2078]
[1740435359229,3.2078,2569.4,2568.1,3.2078]
[1740435359430,0.77839,2569.6,2568.8,3.2078]
[1740435359636,3.2078,2570.0,2568.9,8.212]
[1740435359925,0.00582761,2569.0,2568.9,8.212]
[1740435360126,3.2078,2569.6,2568.9,14.212]
[1740435360425,3.2078,2570.0,2569.2,3.21364716]
[1740435360629,7.35500209,2570.8,2569.5,3.2078]
[1740435360819,7.35500209,2570.8,2569.4,3.2078]
[1740435361020,5.56236481,2571.0,2569.7,3.2078]
[1740435361216,5.56236481,2571.0,2569.4,3.2078]
[1740435361217,5.56236481,2571.0,2570.9,40.8]
[1740435361419,9.06319986,2572.9,2571.5,0.7778]
[1740435361733,4.18305535,2572.9,2572.1,3.2078]
[1740435361931,6.97175892,2573.3,2572.8,3.2078]
[1740435362224,6.97175892,2573.3,2572.2,29.756]
[1740435362225,10.86596401,2573.3,2572.9,3.2078]
[1740435362433,6.97175892,2573.3,2572.6,3.2078]
[1740435362624,6.97175892,2573.3,2573.2,40.8]
[1740435362823,6.97175892,2573.3,2573.2,52.1498]
[1740435363024,11.64323401,2573.3,2573.2,40.8]
[1740435363328,6.97175892,2573.3,2573.2,40.8]
[1740435363521,6.97175892,2573.3,2573.2,46.8]
[1740435363730,6.97175892,2573.3,2573.2,40.8]
[1740435363926,10.86596401,2573.3,2572.5,8.152]
[1740435364137,3.89420509,2572.6,2572.2,8.142]
[1740435364323,3.89420509,2572.4,2572.2,8.142]
[1740435364525,3.89420509,2572.5,2572.2,8.142]
[1740435364723,0.77754,2572.4,2572.2,8.142]
[1740435364923,6.97175892,2573.3,2572.3,40.8]
[1740435365120,10.86596401,2573.3,2572.8,3.2078]
[1740435365332,6.97175892,2573.3,2572.8,3.2078]
[1740435365635,1.94219,2574.7,2572.8,3.2078]
[1740435365636,3.2078,2574.4,2572.8,9.2078]
[1740435365930,16.3151,2574.9,2572.9,0.3888]
[1740435365931,3.89420509,2574.0,2572.9,0.3888]
[1740435366131,0.77739,2572.9,2572.8,3.2078]
[1740435366429,0.77739,2572.9,2572.2,0.3888]
[1740435366430,0.77745,2572.7,2572.6,8.111]
[1740435366629,3.89420509,2572.8,2572.6,8.111]
[1740435366832,0.7773,2573.2,2572.7,3.2078]
[1740435367130,3.89420509,2573.0,2572.7,3.2078]
[1740435367335,1.94291,2573.7,2572.4,0.00583442]
[1740435367336,3.89420509,2572.8,2572.4,0.00583442]
[1740435367522,0.77775,2571.7,2571.6,3.2078]
[1740435367723,3.89420067,2571.8,2570.7,8.114]
[1740435367929,0.77777,2571.7,2570.9,12.37272506]
[1740435368124,3.2078,2572.6,2571.3,3.2078]
[1740435368328,3.2078,2572.6,2571.6,3.2078]
[1740435368629,3.2078,2573.7,2571.9,3.2078]
[1740435368834,3.89420067,2572.4,2572.2,3.2078]
[1740435369034,3.89420067,2572.4,2571.7,8.112]
[1740435369035,0.00579196,2572.4,2571.9,3.2078]
[1740435369227,3.2078,2573.7,2572.2,3.2078]
[1740435369424,3.89420067,2573.6,2572.5,3.2078]
[1740435369623,5.7994,2573.8,2572.8,3.2078]
[1740435369827,3.89420067,2573.5,2572.9,8.099]
[1740435370038,3.89420067,2573.5,2572.0,0.3888]
[1740435370039,3.89420067,2572.9,2572.1,3.2078]
[1740435370538,3.89420067,2572.9,2572.4,3.2078]
[1740435370736,3.89420067,2572.3,2572.2,0.00583442]
[1740435370930,0.77757,2572.3,2572.2,4.42e-06]
[1740435371125,10.67177067,2572.3,2572.2,4.42e-06]
[1740435371326,4.67177067,2572.3,2572.2,4.42e-06]
[1740435371537,3.89420067,2572.3,2572.2,4.42e-06]
[1740435371725,5.8403,2572.6,2572.2,4.42e-06]
[1740435372034,11.8403,2572.6,2570.7,3.2078]
[1740435372231,0.77798,2571.0,2570.7,11.2628]
[1740435372428,3.2078,2572.4,2570.7,11.2628]
[1740435372628,7.096,2572.1,2570.7,11.2628]
[1740435372828,3.2078,2571.2,2570.7,3.2078]
[1740435373029,32.8108,2571.8,2570.8,36.96595]
[1740435373230,32.8108,2571.8,2568.2,12.11926308]
[1740435373231,3.2078,2570.9,2569.2,3.2078]
[1740435373532,6.61833,2570.8,2570.7,0.00583442]
[1740435373732,9.0481,2570.8,2569.5,3.2078]
[1740435373928,3.2078,2572.0,2570.2,3.2078]
[1740435374133,3.2078,2572.3,2570.7,40.8]
[1740435374329,3.2078,2572.1,2570.8,8.032]
[1740435374839,3.2078,2571.8,2570.8,8.032]
[1740435375139,4.7226,2572.9,2571.7,3.2078]
[1740435375330,3.2078,2573.1,2571.8,8.023]
[1740435375737,3.2078,2573.1,2573.0,40.8]
[1740435375937,3.98513,2573.1,2573.0,40.8]
[1740435376138,9.98513,2573.1,2573.0,40.8]
[1740435376335,9.98513,2573.1,2569.6,3.89195]
[1740435376336,9.2078,2573.1,2571.4,3.2078]
[1740435376538,3.2078,2572.8,2571.8,3.8864]
[1740435376733,3.2078,2572.8,2571.4,3.2078]
[1740435377042,1.94349,2572.9,2571.4,3.2078]
[1740435377043,5.9207,2572.7,2572.3,3.8864]
[1740435377233,4.7226,2573.0,2572.7,3.8864]
[1740435377541,0.00583442,2573.3,2572.9,3.8864]
[1740435377739,0.00583442,2573.3,2573.2,3.8864]
[1740435377942,3.2078,2574.3,2573.2,14.023]
[1740435378239,3.2078,2574.8,2574.5,3.8864]
[1740435378444,3.2078,2574.8,2574.6,40.8]
[1740435378636,0.77685,2574.7,2574.6,40.8]
[1740435378945,1.9423,2574.5,2573.2,8.023]
[1740435379135,3.2078,2574.4,2573.6,3.8864]
[1740435379331,5.9207,2574.6,2574.4,3.8864]
[1740435379643,5.9207,2574.6,2573.8,3.2078]
[1740435379842,5.9207,2574.6,2574.5,40.8]
[1740435380139,7.7376,2575.2,2574.5,40.8]
[1740435380140,7.7376,2575.2,2574.8,0.77679]
[1740435380345,3.2078,2575.2,2574.9,3.8864]
[1740435380542,3.2078,2575.9,2575.1,3.8864]
[1740435380744,3.2078,2575.9,2575.3,3.8864]
[1740435380945,3.2078,2575.4,2575.3,3.8864]
[1740435381143,3.2078,2575.7,2575.3,40.8]
[1740435381437,3.2078,2575.7,2575.5,3.8864]
[1740435381643,8.6521,2576.1,2575.5,3.8864]
[1740435381838,8.6521,2576.1,2575.3,40.80583442]
[1740435382040,8.6521,2576.1,2576.0,3.8864]
[1740435382243,14.6521,2576.1,2575.5,3.8864]
[1740435382443,8.6521,2576.1,2575.9,3.8864]
[1740435382743,3.2078,2576.4,2576.0,3.8864]
[1740435383047,3.2078,2576.8,2576.5,3.8864]